Cogmind - Beta 16 --- EXPLORER MODE // 2025.11.14 @ 23:17:54 Player: Beosis Result: Self-destructed Performance ------------- Evolutions (0) 0 Regions Visited (4) 800 Robots Destroyed (19) 95 Value Destroyed (415) 415 Prototype IDs (2) 40 Alien Tech Used (0) 0 Bonus (300) 300 TOTAL SCORE: 1650 Bonus ------- Aligned with FarCom 300 Cogmind --------- Core Integrity 14/250 Matter 280/300 Energy 100/100 System Corruption 1% Temperature Cool (0) Movement Core (350) Ox6 Location -9/Mines Parts ------- > --- POWER (1) -------- (None) > --- PROPULSION (3) --- (None) > --- UTILITY (2) ------ Large Storage Unit Core Shielding > --- WEAPON (2) ------- (None) > --- INVENTORY (15) --- Aluminum Leg Aluminum Leg Aluminum Leg Aluminum Leg Improved Heat Sink Signal Interpreter Terrain Scanner Transport Network Coupler Targeting Computer Rocket Launcher Datajack Longsword +1 Proton Bomb Trap Peak State ------------ > --- POWER ------------ Ion Engine > --- PROPULSION ------- Aluminum Leg Aluminum Leg Aluminum Leg > --- UTILITY ---------- Large Storage Unit Core Shielding > --- WEAPON ----------- Medium Laser Light Assault Rifle > --- INVENTORY -------- Aluminum Leg Aluminum Leg Aluminum Leg Aluminum Leg Improved Heat Sink Signal Interpreter Terrain Scanner Transport Network Coupler Targeting Computer Particle Gun Rocket Launcher Datajack Longsword +1 [Rating: 10] Favorites ----------- Power Ion Engine Engine Ion Engine Propulsion Aluminum Leg Leg Aluminum Leg Utility Core Shielding Storage Large Storage Unit Protection Core Shielding Weapon Medium Laser Energy Gun Medium Laser Ballistic Gun Light Assault Rifle Build | -11 -10 -10 -10 -9 ------- Run | Yrd Mat Min Exi Min Slots Evolved 1 | . 1 . . . Power . | . . . . . Propulsion 1 | . 1 . . . Utility . | . . . . . Weapon . | . . . . . Parts Attached 14 | 7 2 4 . 1 Power 1 | 1 . . . . Engine 1 | 1 . . . . Core . | . . . . . Reactor . | . . . . . Propulsion 7 | 2 1 4 . . Treads . | . . . . . Leg 7 | 2 1 4 . . Wheel . | . . . . . Hover . | . . . . . Flight . | . . . . . Utility 3 | 2 1 . . . Device . | . . . . . Storage 2 | 1 1 . . . Processor . | . . . . . Hackware . | . . . . . Protection 1 | 1 . . . . Artifact . | . . . . . Weapon 3 | 2 . . . 1 Energy Gun 2 | 1 . . . 1 Energy Cannon . | . . . . . Ballistic Gun 1 | 1 . . . . Ballistic Cannon . | . . . . . Launcher . | . . . . . Special Weapon . | . . . . . Impact Weapon . | . . . . . Slashing Weapon . | . . . . . Piercing Weapon . | . . . . . Special Melee Weapon . | . . . . . Unidentified Prototypes . | . . . . . Parts Lost 6 | . . . . 6 Power 1 | . . . . 1 Propulsion 2 | . . . . 2 Utility . | . . . . . Weapon 3 | . . . . 3 Highest Loss Streak 6 | . . . . 6 To Critical Strikes . | . . . . . Average Backups 10 | . 8 11 13 12 Power . | . . 1 . . Propulsion 3 | . 3 3 4 4 Utility 4 | . 3 5 5 5 Weapon 1 | . . 1 2 2 Tool/Special . | . . . . . Unused Backups 9 | . . . 1 8 Power 1 | . . . 1 . Propulsion . | . . . . . Utility 5 | . . . . 5 Weapon 2 | . . . . 2 Tool/Special 1 | . . . . 1 Average Slot Usage (%) 96 | . 93 100 100 87 Engine 11 | . 12 12 12 10 Leg 34 | . 31 37 37 30 Storage 12 | . 12 12 12 12 Protection 12 | . 12 12 12 12 Energy Gun 11 | . 12 12 12 10 Ballistic Gun 11 | . 12 12 12 10 Peak Build Rating 10 | 7 9 9 10 10 Average Rating 8 | 4 8 9 9 8 On Entrance 7 | . 7 9 9 10 Avg Prop Armor Cover (%) . | . . . . . Naked Turns . | . . . . . Heaviest Build 29 | 19 29 29 29 29 Greatest Support 30 | 20 30 30 30 30 Greatest Overweight (x) 1 | . 1 . . 1 Average Overweight (x) . | . . . . . Largest Inventory Capacity 15 | 10 15 15 15 15 Average Capacity 13 | 7 12 15 15 15 Most Carried 14 | 3 11 13 13 14 Average Carried 10 | . 8 11 12 13 Final Capacity 15 | 10 15 15 15 15 Final Carried 13 | 1 11 13 13 13 Class Distribution -------------------- 100% | Hacker-Mutant Dominant Class ---------------- Hacker-Mutant | -10/Materials Hacker-Mutant | -10/Mines Hacker-Mutant | -10/Exiles Hacker-Mutant | -9/Mines Resources | -11 -10 -10 -10 -9 ----------- Run | Yrd Mat Min Exi Min Matter Collected 355 | 219 113 23 . . Remotely . | . . . . . Salvage Created 716 | . 465 251 . . Parts 29 | . 24 5 . . Haulers Intercepted 2 | . 2 . . . Recyclers Shooed 1 | . 1 . . . Parts Field Recycled . | . . . . . Retrieved Matter . | . . . . . Parts Self-Destructed . | . . . . . Prevented . | . . . . . Parts Restored . | . . . . . Kills | -11 -10 -10 -10 -9 ------- Run | Yrd Mat Min Exi Min Combat Hostiles Destroyed 11 | . 7 4 . . Guns 11 | . 7 4 . . Classes Destroyed 6 | . 4 2 . . Worker 2 | . 2 . . . Hauler 2 | . 2 . . . Recycler 2 | . . 2 . . Watcher 2 | . 2 . . . Swarmer 2 | . . 2 . . Grunt 9 | . 7 2 . . Best Kill Streak 3 | . 3 3 . . Combat Bots Only 2 | . 2 2 . . Max Kills in Single Turn 1 | . 1 1 . . Gunslinging . | . . . . . Exploded . | . . . . . Melee . | . . . . . Uniques/NPCs Destroyed . | . . . . . Combat | -11 -10 -10 -10 -9 -------- Run | Yrd Mat Min Exi Min Hostile Shots Fired 95 | . 29 19 . 47 Missed 20 | . 7 6 . 7 Hits 75 | . 22 13 . 40 Melee 4 | . . . . 4 Projectile 71 | . 22 13 . 36 AOE 19 | . . . . 19 Critical Strikes 2 | . 1 . . 1 Damage Taken 934 | . 178 100 . 656 Core 236 | . 38 11 . 187 Absorbed by Shields . | . . . . . Redirected to Shielding 41 | . 5 2 . 34 Ignored by Resistances 569 | . 112 65 . 392 Core Remaining (%) 100 | 100 . . . . Volleys Fired 56 | . 40 15 . 1 Largest 2 | . 2 2 . 1 Hottest 70 | . 70 70 . 65 Shots Fired 110 | . 79 30 . 1 Gun 110 | . 79 30 . 1 Cannon . | . . . . . Launcher . | . . . . . Special . | . . . . . Kinetic 55 | . 40 15 . . Thermal 55 | . 39 15 . 1 Explosive . | . . . . . Electromagnetic . | . . . . . Robot Hit Streak 27 | . 16 27 . . Robot Miss Streak 2 | . 2 1 . 1 Penetration Max . | . . . . . Secondary Targets 1 | . . 1 . . Max Gunslinging Chain 1 | . . 1 . . Shots Hit Robots 91 | . 65 26 . . Core Hits 41 | . 29 12 . . Critical Kills . | . . . . . Critical Parts Destroyed . | . . . . . Critical Strikes 7 | . 3 4 . . Burn 7 | . 3 4 . . Melee Attacks . | . . . . . Impact . | . . . . . Slashing . | . . . . . Piercing . | . . . . . Sneak Attacks . | . . . . . Combat Hostiles . | . . . . . Follow-up Attacks . | . . . . . Damage Inflicted 1044 | . 708 336 . . Guns 905 | . 629 276 . . Cannons . | . . . . . Explosions . | . . . . . Melee . | . . . . . Ramming 139 | . 79 60 . . Kinetic 315 | . 218 97 . . Thermal 590 | . 411 179 . . Explosive . | . . . . . Electromagnetic . | . . . . . Impact . | . . . . . Slashing . | . . . . . Piercing . | . . . . . Highest Corruption 1 | . 1 1 1 1 Average Corruption 1 | . 1 1 1 1 Corruption Purged . | . . . . . Corruption Blocked . | . . . . . Effects 12 | . 4 5 2 1 Message Errors 4 | . 1 2 1 . Matter Fused 2 | . 1 1 . . Heat Flow Errors 1 | . 1 . . . Energy Discharges 2 | . . . 1 1 Data Loss (minor) 1 | . . 1 . . Alerts 2 | . 1 1 . . Overload Shots . | . . . . . Overflow Damage . | . . . . . Projectiles . | . . . . . Explosions . | . . . . . Melee . | . . . . . Knockbacks . | . . . . . Impact . | . . . . . Kinetic . | . . . . . Secondary . | . . . . . Self-Inflicted Damage . | . . . . . Shots . | . . . . . Rammed . | . . . . . Targets Rammed 21 | . 15 6 . . Kicked 21 | . 15 6 . . Crushed . | . . . . . Highest Temperature 279 | . 279 157 . 19 Average Temperature 68 | . 74 51 . 11 Received Heat Transfer 307 | . 186 81 . 40 Siege Activations . | . . . . . Martial Activations . | . . . . . Shielding Activations . | . . . . . Robots Disrupted . | . . . . . Combat Hostiles . | . . . . . Robots Corrupted . | . . . . . Combat Hostiles . | . . . . . Parts Fried . | . . . . . Impact Corruptions . | . . . . . Robots Melted . | . . . . . Combat Hostiles . | . . . . . Parts Melted 4 | . 2 2 . . Heat Transferred 2257 | . 1443 814 . . Parts Sabotaged . | . . . . . Parts Stolen . | . . . . . Parts Stripped . | . . . . . Power Chain Reactions . | . . . . . Alert | -11 -10 -10 -10 -9 ------- Run | Yrd Mat Min Exi Min Maximum Alert Level . | . . . . . Low Security (%) 100 | 100 100 100 . 100 Level 1 . | . . . . . Level 2 . | . . . . . Level 3 . | . . . . . Level 4 . | . . . . . Level 5 . | . . . . . High Security . | . . . . . Max Security . | . . . . . Peak Influence 50 | . 50 50 . . Initial . | . . . . . Average 6 | . 7 5 . . Influence Increases 335 | . 225 110 . . Destroy 0b10 Robot/C 220 | . 140 80 . . Destroy 0b10 Robot/NC 40 | . 30 10 . . Destroy Leader 48 | . 28 20 . . Successful Hack 12 | . 12 . . . Lose Combat Pursuer 15 | . 15 . . . Influence Decreases 335 | . 225 110 . . Time Decay 335 | . 225 110 . . Squads Dispatched . | . . . . . Investigation . | . . . . . Extermination . | . . . . . Reinforcement . | . . . . . Assault . | . . . . . Garrison . | . . . . . Intercept . | . . . . . Searches Triggered . | . . . . . Construction Impeded . | . . . . . Haulers Reinforced . | . . . . . Active Scanning Responses . | . . . . . Cargo Convoy Interrupts . | . . . . . Stealth | -11 -10 -10 -10 -9 --------- Run | Yrd Mat Min Exi Min Distress Signals 1 | . 1 . . . Communications Jammed . | . . . . . Distress Signals . | . . . . . Times Spotted 43 | . 18 4 . 21 Peak Tracking Total 20 | . 2 2 . 20 Tactical Retreats 2 | . 1 . . 1 Traps | -11 -10 -10 -10 -9 ------- Run | Yrd Mat Min Exi Min Traps Triggered 1 | . 1 . . . Indirectly . | . . . . . Trap Hack Attempts . | . . . . . Triggered . | . . . . . Disarmed 4 | . 4 . . . Reprogrammed . | . . . . . Reused . | . . . . . Traps Extracted . | . . . . . Installed . | . . . . . Triggered . | . . . . . Most Traps Carried 1 | . . . . 1 Machines | -11 -10 -10 -10 -9 ---------- Run | Yrd Mat Min Exi Min Machines Disabled . | . . . . . Max in Single Turn . | . . . . . Machines Repaired . | . . . . . Machines Dismantled . | . . . . . Machines Sabotaged . | . . . . . Overloaded Fab Kills . | . . . . . Hacking | -11 -10 -10 -10 -9 --------- Run | Yrd Mat Min Exi Min Machines Accessed 3 | . 3 . . . Terminals 3 | . 3 . . . Fabricators . | . . . . . Repair Stations . | . . . . . Recycling Units . | . . . . . Scanalyzers . | . . . . . Garrison Access . | . . . . . Total Hacks 7 | . 7 . . . Successful 5 | . 5 . . . Failed 2 | . 2 . . . Catastrophic . | . . . . . Database Lockouts . | . . . . . Manual 2 | . . . 2 . Terminals 7 | . 7 . . . Fabricators . | . . . . . Repair Stations . | . . . . . Recycling Units . | . . . . . Scanalyzers . | . . . . . Garrison Access . | . . . . . Terminal Hacks 5 | . 5 . . . Prototype ID Bank 1 | . 1 . . . Level Access Points 1 | . 1 . . . Disarm Traps 1 | . 1 . . . Transport Status 1 | . 1 . . . Zone Layout 1 | . 1 . . . Fabricator Hacks . | . . . . . Repair Station Hacks . | . . . . . Recycling Unit Hacks . | . . . . . Scanalyzer . | . . . . . Garrison Access Hacks . | . . . . . Unauthorized Hacks . | . . . . . Terminals . | . . . . . Fabricators . | . . . . . Repair Stations . | . . . . . Recycling Units . | . . . . . Scanalyzers . | . . . . . Garrison Access . | . . . . . Data Cores Recovered . | . . . . . Used . | . . . . . Hacking Detections 1 | . 1 . . . Full Trace Events . | . . . . . Feedback Events . | . . . . . Feedback Blocked . | . . . . . Robot Schematics Acquired . | . . . . . Robots Built . | . . . . . Authchips . | . . . . . Time . | . . . . . Total Robot Build Rating . | . . . . . Part Schematics Acquired . | . . . . . Parts Built . | . . . . . Authchips . | . . . . . Time . | . . . . . Total Part Build Rating . | . . . . . Part Studies Acquired . | . . . . . Parts Repaired . | . . . . . Time . | . . . . . Parts Recycled . | . . . . . Recycled Matter . | . . . . . Retrieved Matter . | . . . . . Retrieved Components . | . . . . . Parts Scanalyzed . | . . . . . Part Schematics Acquired . | . . . . . Parts Damaged . | . . . . . Bothacking | -11 -10 -10 -10 -9 ------------ Run | Yrd Mat Min Exi Min Used RIF Installer . | . . . . . Robots Hacked . | . . . . . Non-combat . | . . . . . Combat . | . . . . . Robot Hacks Applied . | . . . . . Relay Couplers Released . | . . . . . Fabnet Peak Effective % . | . . . . . Robots Rewired . | . . . . . Allies Hacked . | . . . . . Hacks Repelled . | . . . . . Allies | -11 -10 -10 -10 -9 -------- Run | Yrd Mat Min Exi Min Total Allies . | . . . . . Largest Group . | . . . . . Highest-Rated Group . | . . . . . Highest-Rated Ally . | . . . . . Total Orders . | . . . . . Ally Attacks . | . . . . . Total Damage . | . . . . . Kills . | . . . . . Allies Corrupted . | . . . . . Allies Melted . | . . . . . Intel | -11 -10 -10 -10 -9 ------- Run | Yrd Mat Min Exi Min Active Infowar (turns) . | . . . . . Robot Analysis Total . | . . . . . Derelict Logs Recovered 1 | . . 1 . . Drone Launches . | . . . . . Drone Recoveries . | . . . . . Exploration | -11 -10 -10 -10 -9 ------------- Run | Yrd Mat Min Exi Min Turns Passed 1806 | 62 851 547 283 63 Spaces Moved 1238 | 45 527 399 235 32 Core 9 | 9 . . . . Treads . | . . . . . Legs 1229 | 36 527 399 235 32 Wheels . | . . . . . Hover . | . . . . . Flight . | . . . . . Fastest Speed 50 | 50 120 120 120 120 Average Speed 120 | 106 120 120 120 141 Slowest Speed 190 | 120 190 120 120 190 Overloaded Moves . | . . . . . Propulsion Burnouts . | . . . . . Robots Hopped . | . . . . . Potential Cave-ins . | . . . . . Cave-ins Triggered . | . . . . . Exploration Rate (%) 43 | 4 63 86 42 20 Regions Visited 4 Branch Regions 3 Pre-discovered Areas . | . . . . . Known Exits Taken 4 | 1 1 1 1 . Unknown Exits Taken . | . . . . . Scrap Searched . | . . . . . Spaces Dug . | . . . . . Terrain Destroyed . | . . . . . Melee . | . . . . . Projectile . | . . . . . AOE . | . . . . . Terrain Rammed . | . . . . . Walls Destroyed . | . . . . . Machines Disabled . | . . . . . Actions | -11 -10 -10 -10 -9 --------- Run | Yrd Mat Min Exi Min Total 1452 | 59 671 437 236 49 Wait 100 | . 76 12 . 12 Move 1234 | 44 526 398 234 32 Hop . | . . . . . Pick Up 24 | 8 11 2 1 2 Fast Attach . | . . . . . Attach 9 | 7 1 . . 1 Detach . | . . . . . Swap 5 | . 1 4 . . Drop 3 | . 1 . 1 1 Fire 56 | . 40 15 . 1 Melee . | . . . . . Ram . | . . . . . Kick 21 | . 15 6 . . Crush . | . . . . . Escape Stasis . | . . . . . Rewire . | . . . . . Trap . | . . . . . Miscellaneous . | . . . . . Route ------- -11/Scrapyard -10/Materials (discovered 4 exits: *Mat x3 / *Min) -10/Mines (discovered 3 exits: *Mat x2 / *Exi) -10/Exiles -9/Mines History --------- Turn | Location | Event 17 | -11/Scrapyard | Identified exit to Materials 17 | -11/Scrapyard | Discovered exit to Materials (range 15) 63 | -11/Scrapyard | Entered Materials 63 | -10/Materials | Evolved 1 slot: Propulsion x1 129 | -10/Materials | Identified exit to Materials 311 | -10/Materials | Build established: Hacker-Mutant 485 | -10/Materials | Identified exit to Mines 485 | -10/Materials | Discovered exit to Mines (range 10) 914 | -10/Materials | Entered Mines 977 | -10/Mines | Received a Rocket Launcher from a helpful Derelict 1154 | -10/Mines | Discovered exit to Materials (range 14) 1359 | -10/Mines | Discovered exit to Materials (range 16) 1361 | -10/Mines | Learned Materials trap positions 1455 | -10/Mines | Deemed a non-threat by the Exiles lab entrance 1456 | -10/Mines | Identified exit to Exiles 1456 | -10/Mines | Discovered exit to Exiles (range 5) 1461 | -10/Mines | Entered Exiles 1497 | -10/Exiles | Met 8R-AWN 1515 | -10/Exiles | Met EX-HEX 1548 | -10/Exiles | Met EX-BIN 1561 | -10/Exiles | Aligned with FarCom system 1562 | -10/Exiles | Given EX-Vault access code 1590 | -10/Exiles | Opened EX-Vault 1596 | -10/Exiles | Found Prototype Slashing Weapon 1650 | -10/Exiles | Warned to stay clear of 0b10 Research branches 1729 | -10/Exiles | Identified exit to Mines 1729 | -10/Exiles | Discovered exit to Mines (range 14) 1744 | -10/Exiles | Left Exiles lab with Longsword +1 1744 | -10/Exiles | Entered Mines 1751 | -9/Mines | Assembled infested the area 1766 | -9/Mines | Found a hidden stash of uninstalled traps 1797 | -9/Mines | Core integrity fell below 50% 1804 | -9/Mines | Core integrity fell below 20% 1807 | -9/Mines | Self-destructed Last Messages --------------- as-97166 destroyed. as-08154 destroyed. as-21917 destroyed. Med. Laser destroyed. Lgt. Assault Rifle destroyed. [Achievement: There's More Where That Came From] The unstable cave ceiling collapses. as-25440 destroyed. as-66123 destroyed. The unstable cave ceiling collapses. Ion Engine destroyed. Aluminum Leg destroyed. D-53 Grenadier destroyed. The unstable cave ceiling collapses. U-05 Engineer builds a Wall. The unstable cave ceiling collapses. Particle Gun destroyed. The unstable cave ceiling collapses. D-53 Grenadier Cmb. Airjet severed. The unstable cave ceiling collapses. Map ----- +----------------------------------------------------+ | | | | | | | | | | | | | | | | | | | | | | | | | ?????????????????????????????????????????????????? | | ?????????????????????????????????????????????????? | | ?????????????????????????????????????????????????? | | ??????????????????#####?????###??????????????????? | | ?????###?????????## ##?## ##?????????????????? | | ?????? ##??????## ## ##????????????????? | | ?????? ##?????# $#????????????????? | | ??????? ##????# #????????????????? | | ???????# #?????# ?????????????????? | | ??????## ##?????# ??????????????????? | | ?????## ##?????# ##??????????????????? | | ?????# ####### ##???#??????????????? | | ?????# ### ##?????????????? | | ?????## ### ### @ # ##????????????? | | ??????# ## ##?# # s% ????????? | | ??????# ######## s #????????? | | ??????# #????#& ######?????????? | | ??????# #????#& #?????????????? | | ??????# ###### & = % a= ???????????? | | ??????# ### ## %d ??????????? | | ??????##### ### = ??????????? | | ??????????# #% ???????????? | | ??????????##### ## ###### ####???????????? | | ??????????????# ###??????# ##??????????????? | | ??????????????#a #?????????# #???????????????? | | ??????????????# ###??????????# #???????????????? | | ??????????????# #?????????????# #???????????????? | | ??????????????! #?????????????? #???????????????? | | ??????????????# #????????????????????????????????? | | ??????????????# #????????????????????????????????? | | ??????????????? ?????????????????????????????????? | | ??????????????? ?????????????????????????????????? | | ??????????????? ?????????????????????????????????? | | ??????????????? ?????????????????????????????????? | | ??????????????? ?????????????????????????????????? | | ??????????????? ?????????????????????????????????? | | ??????????????? ?????????????????????????????????? | | ?????????????????????????????????????????????????? | +----------------------------------------------------+ Best States ------------- Heat Dissipation 25 Energy Generation 10 Energy Capacity 250 Matter Stores 300 Matter Capacity 300 Sight Range 16 Terrain Scan Density 10 Resistance: KI 35 Resistance: TH 35 Resistance: EX 35 Resistance: EM 35 Resistance: I 35 Resistance: S 35 Resistance: P 35 Core Shielding 20 Evasion (%) 55 Offensive Hacking 20 Item Schematics ----------------- None Robot Schematics ------------------ None Fabricated ------------ Nothing Repaired ---------- Nothing Studied --------- None Alien Tech Used ----------------- None Achievements -------------- DATA ERROR: Steam Global Achievement% For Emergencies Only Organ Harvest Sixth Sense There's More Where That Came From Challenges ------------ None Game ------ Seed ParticleBarrageKit Manual? 0 Play Time 00:18:42 Cumulative 33.1 hours Start 2025.11.14 @ 22:38:40 End 2025.11.14 @ 23:17:54 Sessions 1 Manual Loads 0 Difficulty Explorer Special Mode None Game No. 30 Rogue 16 Adventurer 1 Explorer 13 Win Type - Total 0 Types 0/0/0/0/0/0/0/0/0/0 Lore% 21 Gallery% 25 Achievement% 15 Wizard Run 0 Options --------- Layout 1 ASCII 0 Keyboard 0 Movement Numpad Keybinds 0 Fullscreen 1 Font 24/Smallcaps Map View 50x35 Zoom Use 0% Tactical HUD 0 Map Filters NONE Filters NONE Steam 1 RUN: 5025ddaf-b86a-4d52-8470-3714c7cebbcb